bitfinex/quotes_SOLUSD_20260202
["timestamp","ask_amount","ask_price","bid_price","bid_amount"]
[1770049123030,4.08548422,105.54,105.52,9.4766516]
[1770049123337,4.08548422,105.54,105.51,9.47735317]
[1770049123519,4.08548422,105.54,105.5,9.47822632]
[1770049123520,4.08548422,105.53,105.5,9.47822632]
[1770049123928,12.7285582,105.53,105.49,9.47930018]
[1770049124231,4.08548422,105.53,105.49,8.64307398]
[1770049124411,4.08548422,105.53,105.5,18.12160693]
[1770049124926,4.08548422,105.54,105.5,18.12160693]
[1770049125340,4.08548422,105.54,105.5,18.63462798]
[1770049125835,4.08548422,105.56,105.52,9.15997352]
[1770049126044,4.08548422,105.58,105.53,0.51689954]
[1770049126227,4.08548422,105.58,105.53,9.15997352]
[1770049126228,4.08548422,105.57,105.53,9.15997352]
[1770049126423,4.08548422,105.59,105.55,8.64307398]
[1770049127023,23.67250544,105.61,105.57,8.64307398]
[1770049127024,4.08548422,105.61,105.57,8.64307398]
[1770049127228,4.08548422,105.6,105.57,8.64307398]
[1770049127433,4.08548422,105.59,105.55,8.64307398]
[1770049127631,4.08548422,105.59,105.56,18.11635931]
[1770049127820,13.55469657,105.61,105.57,8.64307398]
[1770049128146,12.7285582,105.62,105.57,0.52452337]
[1770049128324,4.08548422,105.6,105.57,50.9]
[1770049128743,4.08548422,105.6,105.56,18.11635931]
[1770049128917,4.17367282,105.58,105.54,50.9]
[1770049129118,4.17367282,105.58,105.54,18.11763672]
[1770049129842,4.17367282,105.56,105.52,18.11979738]
[1770049130524,22.38516092,105.58,105.54,9.47498236]
[1770049130723,4.27054875,105.57,105.54,9.47498236]
[1770049130923,4.27054875,105.57,105.52,10.01927673]
[1770049131151,4.27054875,105.56,105.52,18.11952089]
[1770049131448,4.27054875,105.56,105.52,9.47644691]
[1770049131631,13.74405609,105.56,105.52,9.47644691]
[1770049131821,4.27054875,105.55,105.51,9.47743092]
[1770049132241,4.27054875,105.55,105.51,18.1205049]
[1770049133328,4.27054875,105.54,105.51,18.1205049]
[1770049136342,4.27054875,105.54,105.52,8.64307398]
[1770049136544,4.27054875,105.54,105.51,18.1205049]
[1770049136860,13.74428871,105.56,105.51,18.1205049]
[1770049137029,13.74428871,105.56,105.52,18.11933728]
[1770049137229,13.74428871,105.56,105.53,8.64307398]
[1770049137527,4.27054875,105.55,105.51,9.47748307]
[1770049137734,41.80002727,105.56,105.51,9.47748307]
[1770049137735,4.27054875,105.53,105.51,50.9]
[1770049137943,4.27054875,105.52,105.48,18.12313136]
[1770049138130,4.27054875,105.52,105.47,9.20981973]
[1770049138334,4.27054875,105.52,105.45,0.57000715]
[1770049138548,4.27054875,105.49,105.45,18.12590633]
[1770049138749,4.27054875,105.49,105.45,10.0528395]
[1770049139149,13.75050233,105.49,105.45,9.48283235]
[1770049139754,13.75050233,105.49,105.45,18.12590633]
[1770049140260,9.47909164,105.5,105.46,8.64307398]
[1770049140555,4.27054875,105.52,105.47,8.64307398]
[1770049141237,4.27054875,105.52,105.47,9.21949199]
[1770049141838,4.27054875,105.52,105.47,0.57641801]
[1770049141839,4.27054875,105.51,105.47,0.57641801]
[1770049142039,4.27054875,105.51,105.47,8.64307398]
[1770049142239,9.47867298,105.5,105.46,18.70471641]
[1770049142439,13.74922173,105.5,105.46,18.70471641]
[1770049142958,4.27054875,105.49,105.45,18.12599298]
[1770049143252,4.27054875,105.49,105.43,50.9]
[1770049143253,4.27054875,105.5,105.47,18.12414267]
[1770049143832,4.27054875,105.5,105.46,10.06446095]
[1770049144039,4.27054875,105.5,105.46,18.70753493]
[1770049144856,4.27054875,105.48,105.44,8.64307398]
[1770049145048,4.27054875,105.48,105.44,9.483926]
[1770049145357,4.27054875,105.49,105.45,9.23187777]
[1770049145566,4.27054875,105.49,105.46,9.48219457]
[1770049145761,4.27054875,105.49,105.46,18.12526855]
[1770049145961,9.47804367,105.51,105.47,8.64307398]
[1770049146163,4.27054875,105.5,105.46,9.23488582]
[1770049146348,4.27054875,105.49,105.45,8.64307398]
[1770049146546,13.75023306,105.49,105.45,18.12584515]
[1770049147668,4.27054875,105.47,105.43,9.48496632]
[1770049147858,4.27054875,105.47,105.43,10.08269099]
[1770049148069,13.75078681,105.49,105.45,8.64307398]
[1770049148262,4.27054875,105.48,105.44,0.59772467]
[1770049148567,4.27054875,105.48,105.45,8.64307398]
[1770049149148,4.27054875,105.48,105.44,9.24370423]
[1770049149348,4.27054875,105.48,105.43,9.48496632]
[1770049149567,4.27054875,105.47,105.43,8.64307398]
[1770049149766,4.27054875,105.47,105.44,8.64307398]
[1770049149960,4.27054875,105.49,105.45,8.64307398]
[1770049150670,4.27054875,105.49,105.45,59.54307398]
[1770049150862,13.74876107,105.51,105.47,8.64307398]
[1770049151373,4.27054875,105.5,105.47,8.64307398]
[1770049152277,4.27054875,105.5,105.47,18.12372971]
[1770049153189,4.27054875,105.52,105.47,69.63565236]
[1770049153359,4.27054875,105.52,105.49,8.64307398]
[1770049154263,4.27054875,105.52,105.49,18.12258156]
[1770049154775,9.0,105.54,105.51,9.26045014]
[1770049154965,9.0,105.54,105.5,0.61737616]
[1770049155287,22.74565052,105.54,105.5,9.26045014]
[1770049155464,4.27054875,105.53,105.49,18.12258156]
[1770049156471,9.0,105.54,105.52,8.64307398]
[1770049157972,22.7456638,105.54,105.5,0.6227051]
[1770049158278,22.7456638,105.54,105.5,9.26577908]
[1770049158577,13.27054875,105.54,105.5,18.73862339]
[1770049158775,13.27054875,105.54,105.51,8.63791014]
[1770049159078,9.0,105.54,105.53,8.63791014]
[1770049159561,9.0,105.54,105.52,8.63791014]
[1770049160562,9.0,105.54,105.53,18.11388853]
[1770049160766,9.0,105.54,105.53,9.47597839]
[1770049160963,9.0,105.54,105.52,18.11441975]
[1770049162874,9.0,105.54,105.52,8.63791014]
[1770049163079,9.0,105.54,105.52,18.11461005]
[1770049163376,4.27308659,105.57,105.53,9.27832615]
[1770049163680,4.27308659,105.57,105.54,8.63791014]
[1770049164878,4.27308659,105.57,105.54,18.11293498]
[1770049166269,4.27308659,105.56,105.53,18.11380035]
[1770049166983,4.27308659,105.55,105.52,18.11439641]
[1770049167584,4.27308659,105.55,105.51,18.11528433]
[1770049167987,4.27308659,105.55,105.52,18.11474637]
[1770049168374,4.27308659,105.55,105.52,9.47683623]
[1770049169588,4.27308659,105.55,105.52,18.11474637]
[1770049170376,4.27308659,105.55,105.52,8.63791014]
[1770049170578,4.27308659,105.57,105.54,8.63791014]
[1770049170967,4.27308659,105.57,105.53,8.63791014]
[1770049171387,4.27308659,105.57,105.54,8.63791014]
[1770049171883,4.27308659,105.58,105.55,8.63791014]
[1770049172466,4.27308659,105.58,105.56,8.63791014]
[1770049172875,13.74317228,105.6,105.57,8.63791014]
[1770049173079,4.27308659,105.6,105.57,8.63791014]
[1770049175371,4.27308659,105.6,105.58,9.47149081]
[1770049175577,4.27308659,105.6,105.58,8.63791014]
[1770049175978,4.27308659,105.6,105.57,18.10985647]
[1770049176975,4.27308659,105.6,105.58,8.63791014]
[1770049177360,4.27308659,105.62,105.58,18.10920207]
[1770049177567,4.27308659,105.61,105.59,8.63791014]
[1770049178892,4.27308659,105.61,105.58,8.63791014]
[1770049179074,4.27308659,105.61,105.58,18.1093517]
[1770049179275,4.27308659,105.61,105.58,9.47144156]
[1770049179477,4.27308659,105.61,105.58,18.1093517]
[1770049179672,13.74196775,105.61,105.57,18.10982712]
[1770049179877,4.27308659,105.61,105.57,18.78773742]
[1770049180091,4.27308659,105.6,105.56,18.11069415]
[1770049180291,4.27308659,105.6,105.56,9.47278401]
[1770049180590,4.27308659,105.6,105.55,60.21582044]
[1770049180591,4.27308659,105.59,105.55,18.11160979]
[1770049180790,4.27308659,105.57,105.53,8.63791014]
[1770049180986,4.27308659,105.57,105.52,32.32817063]
[1770049181192,4.27308659,105.57,105.51,0.67989487]
[1770049181391,4.27308659,105.54,105.5,8.63791014]
[1770049181583,4.27308659,105.52,105.48,18.11796443]
[1770049184787,23.68770134,105.54,105.48,18.11796443]
[1770049184788,13.74863291,105.54,105.5,8.63791014]
[1770049184992,13.74863291,105.54,105.51,18.11561999]
[1770049184993,4.27308659,105.54,105.51,18.11561999]
[1770049185581,4.27308659,105.58,105.53,9.32739113]
[1770049185780,4.27308659,105.6,105.56,8.63791014]
[1770049185980,4.27308659,105.58,105.54,8.63791014]
[1770049187079,4.27308659,105.57,105.54,18.11284242]
[1770049187401,4.27308659,105.57,105.54,69.01284242]
[1770049188495,4.35856937,105.56,105.53,8.63791014]
[1770049188702,4.35856937,105.56,105.52,18.11389585]
[1770049189004,4.35856937,105.55,105.51,8.63791014]
[1770049189300,4.35856937,105.54,105.5,18.11643469]
[1770049190495,4.20289814,105.53,105.5,18.11643469]
[1770049191292,13.67757072,105.55,105.51,8.63791014]
[1770049191600,22.31475809,105.56,105.51,8.63791014]
[1770049191801,22.31475809,105.56,105.53,8.63791014]
[1770049191802,4.20289814,105.56,105.53,8.63791014]
[1770049192200,4.20289814,105.56,105.52,8.63791014]
[1770049192500,4.20289814,105.55,105.52,18.11466351]
[1770049192698,4.20289814,105.55,105.51,18.11530731]
[1770049194088,4.20289814,105.53,105.49,8.63791014]
[1770049194406,13.67898843,105.53,105.49,18.11704976]
[1770049194990,13.67898843,105.53,105.48,24.4073709]
[1770049194991,4.20289814,105.52,105.47,9.48053276]
[1770049195197,4.20289814,105.52,105.48,8.63791014]
[1770049195388,9.47558277,105.54,105.5,8.63791014]
[1770049195590,4.20289814,105.53,105.5,8.63791014]
[1770049196510,4.20289814,105.53,105.5,18.11643871]
[1770049197606,4.20289814,105.54,105.5,18.11643871]
[1770049197808,4.20289814,105.54,105.51,8.63791014]
[1770049197990,4.20289814,105.54,105.5,18.11643871]
[1770049198512,13.67816617,105.54,105.5,18.11643871]
[1770049198713,4.20289814,105.53,105.5,18.11643871]
[1770049199297,4.20289814,105.53,105.5,9.47852857]
[1770049199811,4.20289814,105.53,105.5,18.11643871]
[1770049200408,4.20289814,105.52,105.49,9.47913308]
[1770049200596,4.20289814,105.52,105.49,18.11704322]
[1770049201732,4.20289814,105.51,105.47,59.53791014]
[1770049201898,4.20289814,105.51,105.48,8.63791014]
[1770049202092,4.20289814,105.51,105.48,18.11797939]
[1770049202292,4.20289814,105.51,105.49,9.47945723]
[1770049202997,4.20289814,105.51,105.49,8.63791014]
[1770049203314,4.20289814,105.51,105.47,69.01884345]
[1770049203614,4.20289814,105.52,105.49,9.47956078]
[1770049204416,4.20289814,105.53,105.5,8.63791014]
[1770049204720,4.20289814,105.52,105.48,18.11789635]
[1770049204900,4.20289814,105.52,105.47,23.70202176]
[1770049204901,8.63791014,105.52,105.47,18.11882279]
[1770049205216,4.20289814,105.51,105.48,18.11814511]
[1770049205412,4.20289814,105.52,105.49,8.63791014]
[1770049205808,13.679885,105.52,105.49,8.63791014]
[1770049205996,4.20289814,105.51,105.48,18.11814511]
[1770049206197,4.20289814,105.51,105.48,18.11835632]
[1770049207297,4.20289814,105.51,105.48,8.63791014]
[1770049207503,4.20289814,105.51,105.48,18.11833689]
[1770049208717,4.20289814,105.51,105.49,8.63791014]
[1770049209047,4.20289814,105.54,105.5,8.63791014]
[1770049209826,4.20289814,105.53,105.49,8.63791014]
[1770049210016,4.20289814,105.52,105.5,8.63791014]
[1770049211026,4.20289814,105.52,105.49,18.11706177]
[1770049211202,4.20289814,105.52,105.48,18.11820972]
[1770049211608,4.20289814,105.51,105.47,18.11881386]
[1770049212121,13.68072747,105.51,105.47,18.11881386]
[1770049212700,4.20289814,105.51,105.48,8.63791014]
[1770049214426,4.20289814,105.52,105.49,8.63791014]
[1770049215004,4.20289814,105.51,105.49,8.63791014]
[1770049215525,13.6792577,105.53,105.49,9.37721243]
[1770049215737,4.27527085,105.56,105.51,8.63791014]
[1770049215738,4.20289814,105.54,105.51,8.63791014]
[1770049216435,13.6782364,105.54,105.51,8.63791014]
[1770049216812,4.20289814,105.54,105.52,8.63791014]
[1770049217020,4.20289814,105.55,105.53,8.63791014]
[1770049217424,9.47370424,105.56,105.53,8.63791014]
[1770049217626,4.20289814,105.57,105.54,8.63791014]
[1770049218427,4.20289814,105.57,105.54,18.11277333]
[1770049218820,13.67476941,105.58,105.55,8.63791014]
[1770049219125,4.20289814,105.57,105.54,18.11277333]
[1770049219313,4.20289814,105.57,105.53,18.11344362]
[1770049219725,4.20289814,105.57,105.53,8.63791014]
[1770049220539,4.20289814,105.57,105.53,8.6343812]
[1770049221226,13.6757903,105.57,105.53,18.11029329]
[1770049221408,4.22835441,105.56,105.53,18.11029329]
[1770049223036,127.54364895,106.82,105.56,0.74913552]
[1770049223037,12.86273561,105.61,105.56,0.74913552]
[1770049223207,4.22835441,105.61,105.58,8.6343812]
[1770049223412,4.22835441,105.62,105.59,8.6343812]
[1770049223936,4.22835441,105.64,105.61,8.6343812]
[1770049224921,4.22835441,105.64,105.61,18.10314801]
[1770049225315,0.1,105.65,105.62,8.6343812]
[1770049225515,4.32835441,105.65,105.61,18.10314801]
[1770049226014,4.32835441,105.65,105.62,8.6343812]
[1770049226219,4.22835441,105.64,105.61,8.6343812]
[1770049226622,4.22835441,105.64,105.62,8.6343812]
[1770049226817,0.1,105.65,105.63,8.6343812]
[1770049227233,0.1,105.65,105.62,8.6343812]
[1770049227436,4.32835441,105.65,105.59,10.22458209]
[1770049227614,4.22835441,105.63,105.6,8.6343812]
[1770049228030,4.22835441,105.63,105.59,9.46974663]
[1770049228031,4.22835441,105.62,105.59,8.6343812]
[1770049228235,4.22835441,105.6,105.57,8.6343812]
[1770049228542,4.22835441,105.58,105.55,8.6343812]
[1770049229238,4.22835441,105.58,105.55,18.10813527]
[1770049229441,32.30894915,105.6,105.55,18.10813527]
[1770049229442,4.22835441,105.61,105.57,8.6343812]
[1770049229941,4.22835441,105.61,105.58,8.6343812]
[1770049230123,4.22835441,105.61,105.56,0.75702483]
[1770049230124,4.22835441,105.61,105.57,8.6343812]
[1770049230331,13.69718911,105.61,105.57,8.6343812]
[1770049230834,13.69718911,105.61,105.56,10.22944386]
[1770049230835,4.22835441,105.6,105.56,8.6343812]
[1770049231433,4.22835441,105.59,105.54,9.47466448]
[1770049231635,4.22835441,105.59,105.55,8.6343812]
[1770049231832,4.22835441,105.58,105.55,8.6343812]
[1770049232146,4.22835441,105.58,105.54,18.10904568]
[1770049233144,4.22835441,105.57,105.53,18.10989234]
[1770049234035,18.10645509,105.58,105.54,18.1090637]
[1770049234036,9.47207389,105.58,105.54,18.1090637]
[1770049234344,4.22835441,105.61,105.57,8.6343812]
[1770049234648,4.22835441,105.62,105.6,8.6343812]
[1770049234941,4.22835441,105.62,105.59,8.6343812]
[1770049235145,4.22835441,105.61,105.57,18.10633985]
[1770049235326,4.22835441,105.61,105.58,8.6343812]
[1770049235642,4.22835441,105.61,105.57,8.6343812]
[1770049235845,4.22835441,105.6,105.57,8.6343812]
[1770049236141,4.22835441,105.59,105.56,8.6343812]
[1770049237749,13.69914194,105.59,105.55,18.10812884]
[1770049237936,4.22835441,105.58,105.55,8.6343812]
[1770049239424,4.22835441,105.58,105.55,18.10856405]
[1770049239628,4.22835441,105.59,105.56,8.6343812]
[1770049240343,4.22835441,105.59,105.57,8.6343812]
[1770049240558,4.22835441,105.63,105.59,0.76820255]
[1770049240728,4.22835441,105.63,105.58,8.6343812]
[1770049241046,4.520037,105.65,105.62,8.6343812]
[1770049241223,13.98528363,105.65,105.62,8.6343812]
[1770049241423,4.520037,105.65,105.61,18.10240361]
[1770049241622,4.520037,105.65,105.62,8.6343812]
[1770049242449,0.1,105.65,105.63,8.6343812]
[1770049242639,0.1,105.65,105.62,8.6343812]
[1770049242828,4.520037,105.65,105.62,8.6343812]
[1770049243026,4.520037,105.65,105.61,41.77440436]
[1770049243253,4.520037,105.65,105.62,8.6343812]
[1770049243842,4.420037,105.64,105.59,23.67479677]
[1770049244147,4.420037,105.61,105.57,8.6343812]
[1770049244337,4.420037,105.61,105.56,18.1070289]
[1770049244647,4.420037,105.6,105.56,18.10709483]
[1770049245340,4.420037,105.6,105.56,9.47271363]
[1770049245656,4.420037,105.58,105.54,18.10909964]
[1770049246173,4.420037,105.57,105.51,23.69321391]
[1770049246331,4.420037,105.57,105.53,18.10990251]
[1770049246948,4.420037,105.57,105.54,18.10910001]
[1770049247350,22.52519564,105.59,105.55,8.6343812]
[1770049248242,4.420037,105.58,105.55,18.10836868]
[1770049249051,13.0544182,105.58,105.54,8.6343812]
[1770049249255,4.420037,105.57,105.53,18.10991365]
[1770049249955,4.420037,105.57,105.54,8.6343812]
[1770049250335,4.420037,105.56,105.52,8.6343812]
[1770049250636,4.420037,105.56,105.53,8.6343812]
[1770049251952,22.52616719,105.58,105.53,18.1098066]
[1770049252160,4.420037,105.57,105.54,8.6343812]
[1770049252450,4.420037,105.55,105.51,9.47731989]
[1770049252641,4.420037,105.54,105.51,18.11170109]
[1770049252838,4.420037,105.54,105.51,9.47731989]
[1770049253057,4.420037,105.54,105.51,18.11170109]
[1770049253251,4.420037,105.56,105.52,8.6343812]
[1770049253556,4.420037,105.56,105.53,8.6343812]
[1770049254539,4.420037,105.56,105.54,8.6343812]
[1770049254940,4.420037,105.57,105.54,8.6343812]
[1770049256450,13.89197166,105.58,105.55,8.6343812]
[1770049256762,4.420037,105.58,105.54,18.10919394]
[1770049257660,13.89153633,105.58,105.55,8.6343812]
[1770049257856,13.89153633,105.58,105.54,18.10919394]
[1770049258036,4.420037,105.6,105.56,8.6343812]
[1770049258240,4.420037,105.6,105.57,8.6343812]
[1770049258765,4.420037,105.59,105.55,18.1081332]
[1770049259072,4.420037,105.59,105.56,18.10762298]
[1770049259362,4.420037,105.6,105.57,8.6343812]
[1770049259539,4.420037,105.6,105.56,18.10762298]
[1770049259739,4.420037,105.6,105.56,9.47324178]
[1770049259936,4.420037,105.6,105.56,18.10762298]
[1770049260169,4.420037,105.59,105.56,8.6343812]
[1770049260381,4.420037,105.59,105.55,18.1081183]
[1770049260539,13.89106612,105.59,105.55,18.1081183]
[1770049260860,4.420037,105.58,105.55,18.1081183]
[1770049262848,4.420037,105.59,105.52,80.55344957]
[1770049263056,22.52359222,105.61,105.57,8.6343812]
[1770049263374,4.420037,105.6,105.57,8.6343812]
[1770049264145,30.59527085,105.64,105.59,8.6343812]
[1770049264146,4.420037,105.63,105.59,8.6343812]
[1770049264464,4.420037,105.61,105.57,8.6343812]
[1770049264841,4.420037,105.61,105.58,8.6343812]
[1770049265248,4.420037,105.6,105.58,8.6343812]
[1770049266068,4.420037,105.62,105.59,8.6343812]
[1770049266462,4.420037,105.61,105.58,8.6343812]
[1770049266858,4.420037,105.61,105.58,18.1056982]
[1770049267055,4.420037,105.61,105.59,8.6343812]
[1770049267251,4.420037,105.63,105.6,8.6343812]
[1770049267574,4.420037,105.63,105.61,8.6343812]
[1770049267879,4.420037,105.62,105.59,8.6343812]
[1770049268071,4.420037,105.62,105.58,18.1056982]
[1770049268879,4.420037,105.62,105.59,8.6343812]
[1770049269356,4.420037,105.61,105.58,18.1056982]
[1770049270465,4.420037,105.61,105.59,8.6343812]
[1770049270763,4.420037,105.63,105.6,9.46969696]
[1770049270964,4.420037,105.63,105.6,18.10407816]
[1770049271270,0.1,105.65,105.62,8.6343812]
[1770049271477,4.520037,105.65,105.62,8.6343812]
[1770049271650,4.420037,105.64,105.6,33.14393938]
[1770049271971,4.420037,105.64,105.6,18.10407816]
[1770049273565,13.88616988,105.64,105.6,18.10407816]
[1770049273967,4.420037,105.63,105.6,18.10407816]
[1770049274551,13.88710398,105.63,105.6,8.6343812]
[1770049274770,13.88710398,105.63,105.59,18.10452909]
[1770049275564,4.420037,105.62,105.58,9.47105365]
[1770049275760,4.420037,105.6,105.57,18.10633529]
[1770049276178,4.420037,105.6,105.58,9.47147325]
[1770049276555,18.10144818,105.63,105.59,18.104975]
[1770049276862,9.46706698,105.63,105.59,18.104975]
[1770049277262,18.10068712,105.64,105.59,18.104975]
[1770049277463,18.19990646,105.65,105.6,8.6343812]
[1770049277663,18.19990646,105.65,105.61,8.6343812]
[1770049278571,4.40795068,105.64,105.61,8.6343812]
[1770049278756,13.87450069,105.64,105.6,8.6343812]
[1770049278956,4.40795068,105.63,105.6,8.6343812]
[1770049279458,4.40795068,105.63,105.59,97.05459467]
[1770049279661,4.40795068,105.63,105.59,69.004975]
[1770049279872,4.40795068,105.63,105.6,8.6343812]
[1770049280369,4.36781529,105.61,105.59,50.9]
[1770049280557,13.00219649,105.61,105.59,48.73806693]
[1770049281078,13.00219649,105.61,105.57,55.57244813]
[1770049281658,4.36781529,105.61,105.58,9.47142748]
[1770049282058,4.36781529,105.6,105.57,9.47196553]
[1770049282384,4.36781529,105.6,105.57,18.09998742]
[1770049282765,4.36781529,105.6,105.57,8.62802189]
[1770049282966,4.36781529,105.6,105.57,18.10040987]
[1770049284076,4.36781529,105.59,105.55,12.88259653]
[1770049284294,4.36781529,105.59,105.56,8.62802189]
[1770049284679,4.36781529,105.59,105.55,18.10175858]
[1770049284884,8.62802189,105.63,105.52,4.25457464]
[1770049284885,13.84084394,105.57,105.52,4.25457464]
[1770049285179,4.36781529,105.55,105.52,9.47672315]
[1770049285364,4.36781529,105.55,105.52,18.10474504]
[1770049285761,4.36781529,105.54,105.48,27.95388063]
[1770049285972,4.36781529,105.52,105.48,22.36298521]
[1770049286173,12.99583718,105.52,105.47,9.68103757]
[1770049286372,4.36781529,105.51,105.48,9.48034345]
[1770049286575,4.36781529,105.51,105.48,18.10836534]
[1770049287278,4.36781529,105.51,105.48,41.80954091]
[1770049287581,4.36781529,105.53,105.5,8.62802189]
[1770049287767,4.36781529,105.53,105.48,37.43609366]
[1770049287975,4.36781529,105.53,105.49,8.62802189]
[1770049288686,4.36781529,105.53,105.49,18.10729442]
[1770049290079,4.36781529,105.52,105.49,18.10729442]
[1770049290282,4.36781529,105.52,105.49,8.62802189]
[1770049290486,4.36781529,105.52,105.48,22.36268998]
[1770049290885,4.36781529,105.51,105.48,18.10811534]
[1770049291089,4.36781529,105.51,105.47,23.90295286]
[1770049291090,4.36781529,105.5,105.47,0.2]
[1770049292087,4.36781529,105.48,105.44,9.48322328]
[1770049292287,4.36781529,105.47,105.44,9.48322328]
[1770049292791,4.36781529,105.47,105.43,18.31286587]
[1770049293295,4.36781529,105.47,105.43,9.68484398]
[1770049293471,4.36781529,105.47,105.43,18.31286587]
[1770049294380,4.36781529,105.46,105.43,18.31286587]
[1770049296183,50.01955103,105.49,105.43,18.31286587]
[1770049296184,4.36781529,105.5,105.45,8.62802189]
[1770049296382,4.36781529,105.49,105.46,8.62802189]
[1770049296681,4.36781529,105.51,105.47,8.62802189]
[1770049296869,4.36781529,105.51,105.48,8.62802189]
[1770049297077,4.36781529,105.51,105.49,8.62802189]
[1770049297389,4.36781529,105.54,105.5,12.88259653]
[1770049297592,4.36781529,105.54,105.51,18.1057965]
[1770049297778,4.36781529,105.54,105.5,9.47828417]
[1770049297978,4.36781529,105.53,105.49,8.62802189]
[1770049298188,4.36781529,105.52,105.49,8.62802189]
[1770049298399,4.36781529,105.52,105.48,18.10842013]
[1770049298571,4.36781529,105.51,105.48,8.62802189]
[1770049298775,4.36781529,105.51,105.47,8.62802189]
[1770049298985,4.36781529,105.51,105.45,13.7372216]
[1770049299187,4.36781529,105.5,105.46,8.62802189]
[1770049299492,9.48047023,105.48,105.44,18.11161349]
[1770049299676,4.36781529,105.47,105.44,18.11161349]
[1770049299877,4.36781529,105.47,105.44,8.62802189]
[1770049300186,4.36781529,105.47,105.43,18.31263277]
[1770049300969,4.36781529,105.46,105.43,0.2]
[1770049301284,4.36781529,105.44,105.43,0.2]
[1770049301592,4.36781529,105.44,105.42,0.2]
[1770049301782,4.36781529,105.43,105.41,0.2]
[1770049302472,12.99583718,105.43,105.41,0.2]
[1770049302688,4.36781529,105.43,105.41,0.2]
[1770049304090,4.36781529,105.45,105.41,18.31453975]
[1770049304269,4.36781529,105.44,105.41,8.82802189]
[1770049304874,4.36781529,105.44,105.41,0.2]
[1770049305074,12.99583718,105.44,105.41,0.2]
[1770049305400,4.36781529,105.43,105.41,0.2]
[1770049305602,4.36781529,105.42,105.41,0.2]
[1770049306177,13.85368134,105.42,105.41,0.2]
[1770049306993,4.36781529,105.46,105.41,13.08259653]
[1770049307174,4.36781529,105.46,105.42,8.62802189]
[1770049307373,4.36781529,105.45,105.41,9.68671887]
[1770049307596,4.36781529,105.45,105.41,18.31474076]
[1770049308096,13.85107603,105.45,105.42,8.62802189]
[1770049308391,4.21558261,105.43,105.41,0.2]
[1770049308808,12.8436045,105.43,105.4,0.2]
[1770049309095,4.21558261,105.39,105.37,1e-08]
[1770049309274,4.21558261,105.38,105.37,1e-08]
[1770049309889,39.19264138,105.4,105.37,1e-08]
[1770049310193,48.68118926,105.4,105.37,1e-08]
[1770049310580,26.34,105.4,105.37,12.72034595]
[1770049310777,4.22461949,105.41,105.37,12.72034595]
[1770049310983,12.85264138,105.41,105.37,1e-08]
[1770049311296,12.85264138,105.39,105.37,1e-08]
[1770049311794,4.22461949,105.39,105.37,1e-08]
[1770049312178,30.58461949,105.41,105.37,1e-08]
[1770049312392,30.58461949,105.41,105.37,8.6280219]
[1770049312894,39.21264138,105.41,105.37,8.6280219]
[1770049313278,13.71181463,105.41,105.37,18.11837548]
[1770049313599,4.22461949,105.41,105.38,8.62802189]
[1770049313783,13.71178528,105.41,105.38,8.62802189]
[1770049313979,13.71178528,105.41,105.37,1e-08]
[1770049313980,4.22461949,105.4,105.37,1e-08]
[1770049314189,4.22461949,105.4,105.37,8.6280219]
[1770049314399,4.22461949,105.4,105.37,1e-08]
[1770049314581,9.48716579,105.41,105.38,8.62802189]
[1770049314779,22.33898649,105.42,105.38,8.62802189]
[1770049314981,13.7109646,105.42,105.38,8.62802189]
[1770049315494,4.22461949,105.42,105.39,8.62802189]
[1770049315692,40.06929108,105.44,105.4,8.62802189]
[1770049315997,4.22461949,105.43,105.39,8.62802189]
[1770049316997,4.22461949,105.43,105.4,8.62802189]
[1770049317183,13.70960358,105.43,105.4,8.62802189]
[1770049317578,23.70711778,105.46,105.41,12.72034594]
[1770049317785,4.22461949,105.46,105.41,4.09232405]
[1770049317990,4.22461949,105.46,105.42,8.62802189]
[1770049318194,4.00812678,105.45,105.39,4.09232405]
[1770049318397,72.18399403,105.46,105.41,12.72034594]
[1770049318592,12.63593212,105.45,105.41,4.09232405]
[1770049319098,9.48406676,105.44,105.41,4.09232405]
[1770049319498,9.48406676,105.44,105.4,18.11567175]
[1770049319695,4.00748455,105.43,105.39,8.62802189]
[1770049319881,18.11208865,105.44,105.39,12.98677524]
[1770049319882,22.1195732,105.44,105.39,12.98677524]
[1770049320199,22.1195732,105.44,105.4,8.62802189]
[1770049320402,12.63550644,105.43,105.39,8.62802189]
[1770049320600,12.63550644,105.43,105.38,4.35875335]
[1770049320896,12.63529726,105.42,105.37,22.47675078]
[1770049321106,8.62802189,105.41,105.37,4.35875336]
[1770049321292,13.4948897,105.41,105.37,8.6280219]
[1770049321498,13.4948897,105.41,105.38,8.62802189]
[1770049321682,13.4948897,105.41,105.37,22.4769395]
[1770049322307,22.12291159,105.41,105.37,22.4769395]
[1770049323099,26.36,105.42,105.38,12.98677524]
[1770049323401,34.98802189,105.42,105.38,12.98677524]
[1770049323703,26.36,105.42,105.39,12.98677524]
[1770049323906,8.62802189,105.44,105.4,12.98677524]
[1770049324116,12.6435687,105.41,105.37,9.49016426]
[1770049324304,4.01554681,105.41,105.37,22.4769395]